Workbook

Sheet Лист1
G1: сайт: www.delfin-pro.com телефон: 8-920-838-60-65 почта: vlad.palekhin@bk.ru
G3: Итого | H3: =SUM(H220,H7:H220) -> 0
A4: Категория | B4: Артикул | C4: Наименование | D4: Цена опт | E4: РРЦ | F4: РРЦМП | G4: Кол-во | H4: Рассчетная стоимость | I4: 0 | J4: 0
A5: Фонари | C5: Фонари | J5: 0
A6: Фонари | B6: При желании продажи фонаря в комплектации с АКБ и/или ЗУ суммируйте цены, приведённые в столбцах РРЦ или РРЦМП. | J6: 0
A7: Фонари | B7: F001W | C7: Фонарь D7 (1200 люм, белый свет) | D7: 1210 | E7: 1960 | F7: 2255 | H7: =D7*G7 -> 0 | I7: 0 | J7: 0
A8: Фонари | B8: F001Y | C8: Фонарь D7 (1200 люм, тепло-желтый свет) | D8: 1210 | E8: 1960 | F8: 2255 | H8: 0 | I8: 0 | J8: 0
A9: Фонари | B9: FH01W | C9: Фонарь H1 (1200 люм, белый свет) | D9: 1490 | E9: 2415 | F9: 2880 | H9: 0 | I9: 0 | J9: 0
A10: Фонари | B10: FH01Y | C10: Фонарь H1 (1200 люм, тепло-желтый свет) | D10: 1490 | E10: 2415 | F10: 2880 | H10: 0 | I10: 0 | J10: 0
A11: Фонари | B11: F102W | C11: Фонарь L22 (1200 люм, белый свет) | D11: 1600 | E11: 2600 | F11: 2720 | H11: 0 | I11: 0 | J11: 0
A12: Фонари | B12: F102Y | C12: Фонарь L22 (1200 люм, тепло-желтый свет) | D12: 1600 | E12: 2600 | F12: 2720 | H12: 0 | I12: 0 | J12: 0
A13: Фонари | B13: F027W | C13: Фонарь R27 (3000 люм, белый свет) | D13: 2970 | E13: 4900 | F13: 5290 | H13: 0 | I13: 0 | J13: 0
A14: Фонари | B14: F027Y | C14: Фонарь R27 (3000 люм, желтый свет) | D14: 2970 | E14: 4900 | F14: 5290 | H14: 0 | I14: 0 | J14: 0
A15: Фонари | B15: F027MW | C15: Фонарь R27 MAX (3000 люм, белый свет) | D15: 3550 | E15: 5750 | F15: 6180 | H15: 0 | I15: 0 | J15: 0
A16: Фонари | B16: F027MY | C16: Фонарь R27 MAX (3000 люм, желтый свет) | D16: 3550 | E16: 5750 | F16: 6180 | H16: 0 | I16: 0 | J16: 0
A17: Фонари | B17: FD01W | C17: Фонарь RD1 (1200 люм, белый свет) | D17: 1490 | E17: 2415 | F17: 2780 | H17: 0 | I17: 0 | J17: 0
A18: Фонари | B18: FD01Y | C18: Фонарь RD1 (1200 люм, тепло-желтый свет) | D18: 1490 | E18: 2415 | F18: 2780 | H18: 0 | I18: 0 | J18: 0
A19: Фонари | B19: F010W | C19: Фонарь RD2 (1200 люм, белый свет) | D19: 2030 | E19: 3300 | F19: 3530 | H19: 0 | I19: 0 | J19: 0
A20: Фонари | B20: F010Y | C20: Фонарь RD2 (1200 люм, тепло-желтый свет) | D20: 2030 | E20: 3300 | F20: 3530 | H20: 0 | I20: 0 | J20: 0
A21: Фонари | B21: F110W | C21: Фонарь RD3 (1200 люм, белый свет) | D21: 2180 | E21: 3550 | F21: 3820 | H21: =D21*G22 -> 0 | I21: 0 | J21: 0
A22: Фонари | B22: F110Y | C22: Фонарь RD3 (1200 люм, тепло-желтый свет) | D22: 2180 | E22: 3550 | F22: 3820 | H22: =D22*G23 -> 0 | I22: 0 | J22: 0
A23: Фонари | B23: FD02W | C23: Фонарь T15 (1200 люм, белый свет) | D23: 2710 | E23: 4390 | F23: 4850 | H23: =D23*G23 -> 0 | I23: 0 | J23: 0
A24: Фонари | B24: FD02Y | C24: Фонарь T15 (1200 люм, тепло-желтый свет) | D24: 2710 | E24: 4390 | F24: 4850 | H24: =D24*G24 -> 0 | I24: 0 | J24: 0
A25: Фонари | B25: F009W | C25: Фонарь T25 (2500 люм, белый свет) | D25: 2850 | E25: 4620 | F25: 4980 | H25: =D25*G25 -> 0 | I25: 0 | J25: 0
A26: Фонари | B26: F009Y | C26: Фонарь T25 (2500 люм, тепло-желтый свет) | D26: 2850 | E26: 4620 | F26: 4980 | H26: =D26*G26 -> 0 | I26: 0 | J26: 0
A27: Кемпенговые фонари | C27: Кемпенговые фонари | J27: 0
A28: Кемпенговые фонари | B28: N004 | C28: Налобный фонарь B40 ( 1500 люм, белый свет) | D28: 1740 | E28: 2850 | F28: 3200 | H28: =D28*G28 -> 0 | I28: 0 | J28: 0
A29: Аккумуляторы | C29: Аккумуляторы | J29: 0
A30: Аккумуляторы | B30: А005 | C30: Аккумулятор Kip «26650», С ЗАЩИТОЙ 5000mah | D30: 665 | E30: 1080 | F30: 1300 | H30: =D30*G30 -> 0 | I30: 0 | J30: 0
A31: Аккумуляторы | B31: А014 | C31: Аккумулятор LiitoKala «18650», БЕЗ ЗАЩИТОЙ, с вытянутым +, 3400мАч | D31: 365 | E31: 580 | F31: 700 | H31: 0 | I31: 0 | J31: 0
A32: Аккумуляторы | B32: A004 | C32: Аккумулятор LiitoKala «18650», БЕЗ ЗАЩИТЫ, 3400мАч | D32: 350 | E32: 565 | F32: 680 | H32: 0 | I32: 0 | J32: 0
A33: Аккумуляторы | B33: A003 | C33: Аккумулятор LiitoKala «18650», С ЗАЩИТОЙ, 3400мАч | D33: 375 | E33: 605 | F33: 730 | H33: 0 | I33: 0 | J33: 0
A34: Аккумуляторы | B34: А006 | C34: Аккумулятор LiitoKala Lii-50A-JT «26650», БЕЗ ЗАЩИТЫ 5000mah | D34: 425 | E34: 690 | F34: 830 | H34: 0 | I34: 0 | J34: 0
A35: Аккумуляторы | B35: A007 | C35: Аккумулятор NCR21700T «21700», БЕЗ ЗАЩИТЫ 5100mah | D35: 435 | E35: 700 | F35: 840 | H35: 0 | I35: 0 | J35: 0
A36: Зарядные устройства | C36: Зарядные устройства | J36: 0
A37: Зарядные устройства | B37: Z001 | C37: Зарядное устройство Liitokala «Lii-100B» | D37: 370 | E37: 600 | F37: 720 | H37: =D37*G37 -> 0 | I37: 0 | J37: 0
A38: Зарядные устройства | B38: Z002 | C38: Зарядное устройство Liitokala «Lii-202» | D38: 585 | E38: 940 | F38: 1130 | H38: 0 | I38: 0 | J38: 0
A39: Зарядные устройства | B39: Z003 | C39: Зарядное устройство Liitokala «Lii-300» (нет в наличии) | D39: 1455 | E39: 2355 | F39: 2830 | H39: 0 | I39: 0 | J39: 0
A40: Зарядные устройства | B40: Z004 | C40: Зарядное устройство Liitokala «Lii-402» | D40: 825 | E40: 1340 | F40: 1610 | H40: 0 | I40: 0 | J40: 0
A41: Зарядные устройства | B41: Z005 | C41: Зарядное устройство Liitokala «Lii-500» | D41: 1810 | E41: 2935 | F41: 3530 | H41: 0 | I41: 0 | J41: 0
A42: Зарядные устройства | B42: Z008 | C42: Зарядное устройство Liitokala «Lii-D4» | D42: 950 | E42: 1540 | F42: 1850 | H42: 0 | I42: 0 | J42: 0
A43: Зарядные устройства | B43: Z006 | C43: Зарядное устройство Liitokala «Lii-S2» | D43: 765 | E43: 1240 | F43: 1490 | H43: 0 | I43: 0 | J43: 0
A44: Зарядные устройства | B44: Z007 | C44: Зарядное устройство Liitokala «Lii-S4» | D44: 1010 | E44: 1640 | F44: 1970 | H44: 0 | I44: 0 | J44: 0
A45: Аксессуары для фонаря и ружья | C45: Аксессуары для фонаря и ружья | J45: 0
A46: Аксессуары для фонаря и ружья | B46: UD1 | C46: Удлинитель для фонаря R27 MAX NEW | D46: 495 | E46: 800 | F46: 1000 | H46: =D46*G46 -> 0 | I46: 1 | J46: 0
A47: Аксессуары для фонаря и ружья | B47: KPP-01L | C47: Компенсатор плавучести для фонаря (пенопласт) L | D47: 300 | E47: 500 | F47: 690 | H47: 0 | I47: 0 | J47: 0
A48: Аксессуары для фонаря и ружья | B48: KPP-01XL | C48: Компенсатор плавучести для фонаря (пенопласт) XL | D48: 300 | E48: 500 | F48: 690 | H48: 0 | I48: 0 | J48: 0
A49: Аксессуары для фонаря и ружья | B49: KPK-01XL | C49: Компенсатор плавучести для фонаря (пластик) XL | D49: 900 | E49: 1440 | F49: 1860 | H49: 0 | I49: 0 | J49: 0
A50: Аксессуары для фонаря и ружья | B50: V002 | C50: Крепление на руку фонаря «универсальное» D28 | D50: 415 | E50: 670 | F50: 905 | H50: 0 | I50: 0 | J50: 0
A51: Аксессуары для фонаря и ружья | B51: V001 | C51: Крепление на руку фонаря «универсальное» D40 | D51: 415 | E51: 670 | F51: 905 | H51: 0 | I51: 0 | J51: 0
A52: Аксессуары для фонаря и ружья | B52: V003 | C52: Крепление фонаря на ружье (подствольное) с липучками | D52: 220 | E52: 360 | F52: 490 | H52: 0 | I52: 0 | J52: 0
A53: Аксессуары для фонаря и ружья | B53: MGA75659 | C53: Мотовило для гарпуна и линя (белое) | D53: 300 | E53: 500 | F53: 690 | H53: 0 | I53: 0 | J53: 0
A54: Аксессуары для фонаря и ружья | B54: MGA75656 | C54: Мотовило для гарпуна и линя (желтое) | D54: 300 | E54: 500 | F54: 690 | H54: 0 | I54: 0 | J54: 0
A55: Аксессуары для фонаря и ружья | B55: MGA75658 | C55: Мотовило для гарпуна и линя (зеленое) | D55: 300 | E55: 500 | F55: 690 | H55: 0 | I55: 0 | J55: 0
A56: Аксессуары для фонаря и ружья | B56: MGA75654 | C56: Мотовило для гарпуна и линя (красное) | D56: 300 | E56: 500 | F56: 690 | H56: 0 | I56: 0 | J56: 0
A57: Аксессуары для фонаря и ружья | B57: MGA75661 | C57: Мотовило для гарпуна и линя (лаймовое) | D57: 310 | E57: 500 | F57: 690 | H57: 0 | I57: 0 | J57: 0
A58: Аксессуары для фонаря и ружья | B58: MGA75657 | C58: Мотовило для гарпуна и линя (оранжевое) | D58: 300 | E58: 500 | F58: 690 | H58: 0 | I58: 0 | J58: 0
A59: Аксессуары для фонаря и ружья | B59: MGA75660 | C59: Мотовило для гарпуна и линя (синее) | D59: 300 | E59: 500 | F59: 690 | H59: 0 | I59: 0 | J59: 0
A60: Аксессуары для фонаря и ружья | B60: MGA755651 | C60: Мотовило для гарпуна и линя (темно-зеленое) | D60: 300 | E60: 500 | F60: 690 | H60: =D60*G60 -> 0 | I60: 1 | J60: 0
A61: Аксессуары для фонаря и ружья | B61: MGA75655 | C61: Мотовило для гарпуна и линя (черное) | D61: 300 | E61: 500 | F61: 690 | H61: 0 | I61: 0 | J61: 0
A62: Аксессуары для фонаря и ружья | B62: НП1 | C62: Наконечник пуля - 1 флажок | D62: 580 | E62: 940 | F62: 1140 | H62: 0 | I62: 0 | J62: 0
A63: Аксессуары для фонаря и ружья | B63: НП2 | C63: Наконечник пуля - 2 флажка | D63: 600 | E63: 960 | F63: 1150 | H63: 0 | I63: 0 | J63: 0
A64: Аксессуары для фонаря и ружья | B64: НТ2 | C64: Наконечник трехгранный - 2 флажка | D64: 600 | E64: 960 | F64: 1150 | H64: 0 | I64: 0 | J64: 0
A65: Маски, трубки | C65: Маски, трубки | J65: 0
A66: Маски, трубки | B66: MB01 | C66: Бокс под маску пластиковый | D66: 285 | E66: 460 | F66: 560 | H66: =D66*G66 -> 0 | I66: 0 | J66: 0
A67: Маски, трубки | B67: M003 | C67: Маска Glance | D67: 1170 | E67: 1890 | F67: 2270 | H67: 0 | I67: 0 | J67: 0
A68: Маски, трубки | B68: M001 | C68: Маска Hunter black | D68: 1055 | E68: 1710 | F68: 2060 | H68: 0 | I68: 0 | J68: 0
A69: Маски, трубки | B69: M002 | C69: Маска Hunter green | D69: 1055 | E69: 1710 | F69: 2060 | H69: 0 | I69: 0 | J69: 0
A70: Маски, трубки | B70: M005 | C70: Маска Мinimal black | D70: 805 | E70: 1280 | F70: 1540 | H70: 0 | I70: 1 | J70: 0
A71: Маски, трубки | B71: M006 | C71: Маска Мinimal white | D71: 805 | E71: 1280 | F71: 1540 | H71: 0 | I71: 1 | J71: 0
A72: Маски, трубки | B72: M004 | C72: Маска Vision | D72: 1200 | E72: 1950 | F72: 2340 | H72: 0 | I72: 0 | J72: 0
A73: Маски, трубки | B73: T002 | C73: Трубка Air PRO зеленая | D73: 485 | E73: 790 | F73: 950 | H73: 0 | I73: 0 | J73: 0
A74: Маски, трубки | B74: Т004 | C74: Трубка Coral (с клапаном) | D74: 735 | E74: 1190 | F74: 1430 | H74: =D74*G74 -> 0 | I74: 1 | J74: 0
A75: Маски, трубки | B75: Т007 | C75: Трубка Okean белая NEW | D75: 440 | E75: 790 | F75: 950 | H75: 0 | I75: 1 | J75: 0
A76: Маски, трубки | B76: Т006 | C76: Трубка Okean зеленая NEW | D76: 440 | E76: 790 | F76: 950 | H76: 0 | I76: 1 | J76: 0
A77: Маски, трубки | B77: Т008 | C77: Трубка Okean мятная NEW | D77: 440 | E77: 792 | F77: 950 | H77: =D77*G77 -> 0 | I77: 3 | J77: 0
A78: Маски, трубки | B78: Т010 | C78: Трубка Okean розовая NEW | D78: 440 | E78: 793 | F78: 950 | H78: 0 | I78: 4 | J78: 0
A79: Маски, трубки | B79: Т009 | C79: Трубка Okean синяя NEW | D79: 440 | E79: 794 | F79: 950 | H79: 0 | I79: 5 | J79: 0
A80: Маски, трубки | B80: Т005 | C80: Трубк Okean черная NEW | D80: 440 | E80: 795 | F80: 950 | H80: 0 | I80: 6 | J80: 0
A81: Режущие инструменты | C81: Режущие инструменты | J81: 0
A82: Режущие инструменты | B82: NTP | C82: Нож Talons PRO NEW | D82: 1800 | E82: 3000 | F82: 3600 | H82: =D82*G82 -> 0 | I82: 1 | J82: 0
A83: Подводный компьютер | C83: Подводный компьютер | J83: 0
A84: Подводный компьютер | B84: AQ09W | C84: Подводный компьютер NORTH EDGE - AQUA | D84: 8840 | E84: 14350 | F84: 15500 | H84: 0 | I84: 0 | J84: 0
A85: Компенсаторы плавучести | C85: Компенсаторы плавучести | J85: 0
A86: Компенсаторы плавучести | B86: 119840 | C86: Гофра инфлятора компенсатора плавучести закруглённая, 40см | D86: 945 | E86: 1530 | F86: 1840 | H86: =D86*G86 -> 0 | I86: 0 | J86: 0
A87: Компенсаторы плавучести | B87: 119830 | C87: Гофра инфлятора компенсатора плавучести, 30см | D87: 830 | E87: 1350 | F87: 1620 | H87: 0 | I87: 0 | J87: 0
A88: Компенсаторы плавучести | B88: 119835 | C88: Гофра инфлятора компенсатора плавучести, 35см | D88: 830 | E88: 1350 | F88: 1620 | H88: 0 | I88: 0 | J88: 0
A89: Компенсаторы плавучести | B89: 119841 | C89: Гофра инфлятора компенсатора плавучести, 40см | D89: 945 | E89: 1530 | F89: 1840 | H89: 0 | I89: 0 | J89: 0
A90: Компенсаторы плавучести | B90: BCD-181L | C90: Компенсатор плавучести «SEA DELFIN» L | D90: 15660 | E90: 25400 | F90: 30480 | H90: 0 | I90: 0 | J90: 0
A91: Компенсаторы плавучести | B91: BCD-181M | C91: Компенсатор плавучести «SEA DELFIN» M | D91: 15660 | E91: 25400 | F91: 30480 | H91: 0 | I91: 0 | J91: 0
A92: Компенсаторы плавучести | B92: BCD-181XL | C92: Компенсатор плавучести «SEA DELFIN» XL | D92: 15660 | E92: 25400 | F92: 30480 | H92: 0 | I92: 0 | J92: 0
A93: Компенсаторы плавучести | B93: PC10157 | C93: Пряжка поясная, стальная | D93: 320 | E93: 520 | F93: 630 | H93: 0 | I93: 0 | J93: 0
A94: Компенсаторы плавучести | B94: 114937 | C94: Пульт инфлятора «K-STYLE» | D94: 2240 | E94: 3630 | F94: 4360 | H94: 0 | I94: 0 | J94: 0
A95: Компенсаторы плавучести | B95: 1025755 | C95: Шланг поддува компенсатора плавучести, 55 см | D95: 1300 | E95: 2080 | F95: 2500 | H95: 0 | I95: 0 | J95: 0
A96: Компенсаторы плавучести | B96: 1025760 | C96: Шланг поддува компенсатора плавучести, 60 см | D96: 1350 | E96: 2160 | F96: 2600 | H96: 0 | I96: 0 | J96: 0
A97: Компенсаторы плавучести | B97: 1025770 | C97: Шланг поддува компенсатора плавучести, 70 см | D97: 1450 | E97: 2320 | F97: 2790 | H97: 0 | I97: 0 | J97: 0
A98: Компенсаторы плавучести | B98: 1025780 | C98: Шланг поддува компенсатора плавучести, 80 см | D98: 1550 | E98: 2480 | F98: 2980 | H98: 0 | I98: 0 | J98: 0
A99: Компенсаторы плавучести | B99: 1025790 | C99: Шланг поддува компенсатора плавучести, 90 см | D99: 1650 | E99: 2640 | F99: 3170 | H99: 0 | I99: 0 | J99: 0
A100: Компенсаторы плавучести | B100: 10257100 | C100: Шланг поддува компенсатора плавучести, 100 см | D100: 1750 | E100: 2800 | F100: 3360 | H100: =D100*G100 -> 0 | I100: 1 | J100: 0
A101: Компенсаторы плавучести | B101: 10257110 | C101: Шланг поддува компенсатора плавучести, 110 см | D101: 1850 | E101: 2960 | F101: 3560 | H101: 0 | I101: 2 | J101: 0
A102: Регуляторы | C102: Регуляторы | J102: 0
A103: Регуляторы | B103: MO24132 | C103: AKUANA Манометр Hippo 1 | D103: 4100 | E103: 6560 | F103: 7870 | H103: =D103*G103 -> 0 | I103: 0 | J103: 0
A104: Регуляторы | B104: MО24133 | C104: AKUANA Манометр Hippo 2 | D104: 4370 | E104: 7000 | F104: 8400 | H104: 0 | I104: 0 | J104: 0
A105: Регуляторы | B105: CBE0215 | C105: AKUANA Октопус Falconet 2 | D105: 11100 | E105: 17760 | F105: 21310 | H105: 0 | I105: 0 | J105: 0
A106: Регуляторы | B106: CC05266 | C106: AKUANA Регулятор вторая ступень Falconet 2 черная | D106: 8850 | E106: 14160 | F106: 16990 | H106: 0 | I106: 0 | J106: 0
A107: Регуляторы | B107: CB22612 | C107: AKUANA Регулятор первая ступень Falcon 3 | D107: 10550 | E107: 16880 | F107: 20250 | H107: 0 | I107: 0 | J107: 0
A108: Регуляторы | B108: RM22612 | C108: AKUANA Ремкомплект 1-й ступени Falcon 2 ice version | D108: 1700 | E108: 2700 | F108: 3240 | H108: 0 | I108: 0 | J108: 0
A109: Регуляторы | B109: RM22615 | C109: AKUANA Ремкомплект 1-й ступени Falcon 3 | D109: 1700 | E109: 2700 | F109: 3240 | H109: 0 | I109: 0 | J109: 0
A110: Регуляторы | B110: RM22622 | C110: AKUANA Ремкомплект 2-й ступени Falconet 2 | D110: 1700 | E110: 2700 | F110: 3240 | H110: 0 | I110: 0 | J110: 0
A111: Регуляторы | B111: CE15161 | C111: AKUANA Шланг резиновый ко 2-ой ступени регулятора 61 см. | D111: 2100 | E111: 3350 | F111: 4020 | H111: 0 | I111: 0 | J111: 0
A112: Регуляторы | B112: ZAR05 | C112: Загубник анатомический для регулятора, черный | D112: 255 | E112: 420 | F112: 510 | H112: 0 | I112: 0 | J112: 0
A113: Регуляторы | B113: SI-183B | C113: Загубник анатомический для регулятора, черный V2 | D113: 490 | E113: 790 | F113: 950 | H113: 0 | I113: 0 | J113: 0
A114: Регуляторы | B114: TK03 | C114: О-ринг DIN регулятора | D114: 40 | E114: 70 | F114: 84 | H114: 0 | I114: 0 | J114: 0
A115: Регуляторы | B115: TK02 | C115: О-ринг вентиля | D115: 51 | E115: 90 | F115: 108 | H115: 0 | I115: 0 | J115: 0
A116: Регуляторы | B116: TK05 | C116: О-ринги нипеля для манометретра «HP» | D116: 37 | E116: 60 | F116: 72 | H116: 0 | I116: 0 | J116: 0
A117: Регуляторы | B117: TK06 | C117: О-ринги шланга ко 2-ой ступени регулятора | D117: 40 | E117: 70 | F117: 84 | H117: 0 | I117: 0 | J117: 0
A118: Регуляторы | B118: TK04 | C118: О-ринги шланга манометретра «HP» | D118: 37 | E118: 60 | F118: 72 | H118: 0 | I118: 0 | J118: 0
A119: Регуляторы | B119: CE15245 | C119: Шланг манометра резиновый с нейлоновой оплеткой «HP» 15 см | D119: 1895 | E119: 3035 | F119: 3650 | H119: 0 | I119: 0 | J119: 0
A120: Регуляторы | B120: CE15246 | C120: Шланг манометра резиновый с нейлоновой оплеткой «HP» 60 см | D120: 2645 | E120: 4235 | F120: 5090 | H120: 0 | I120: 0 | J120: 0
A121: Регуляторы | B121: CE15247 | C121: Шланг манометра резиновый с нейлоновой оплеткой «HP» 70 см | D121: 2835 | E121: 4540 | F121: 5450 | H121: 0 | I121: 0 | J121: 0
A122: Регуляторы | B122: CE15248 | C122: Шланг манометра резиновый с нейлоновой оплеткой «HP» 80 см | D122: 3390 | E122: 5430 | F122: 6520 | H122: 0 | I122: 0 | J122: 0
A123: Аксессуары к баллону | C123: Аксессуары к баллону | J123: 0
A124: Аксессуары к баллону | B124: VDIN-34М | C124: Вентиль баллона DIN 3/4, 250 BAR, 3500 psi c YOKE-вкруткой | D124: 3150 | E124: 5050 | F124: 6060 | H124: =D124*G124 -> 0 | I124: 0 | J124: 0
A125: Аксессуары к баллону | B125: VDIN-252М | C125: Вентиль баллона DIN М25х2, 250 BAR, 3500 psi c YOKE-вкруткой | D125: 3150 | E125: 5050 | F125: 6060 | H125: 0 | I125: 0 | J125: 0
A126: Аксессуары к баллону | B126: Cl05 | C126: Карабин двусторонний «120x25», нержавеющий | D126: 425 | E126: 680 | F126: 820 | H126: 0 | I126: 0 | J126: 0
A127: Аксессуары к баллону | B127: AS18450 | C127: Карабин с поворотным кольцом, 120 | D127: 340 | E127: 550 | F127: 660 | H127: 0 | I127: 0 | J127: 0
A128: Аксессуары к баллону | B128: ОС010 | C128: Обвязка стейдж-баллона (нет в наличии) | D128: 2590 | E128: 4150 | F128: 4980 | H128: 0 | I128: 0 | J128: 0
A129: Аксессуары к баллону | B129: РV1 | C129: Ручка баллона для дайвинга, пластиковая V1 | D129: 590 | E129: 950 | F129: 1200 | H129: 0 | I129: 0 | J129: 0
A130: Аксессуары к баллону | B130: РV2 | C130: Ручка баллона для дайвинга, пластиковая V2 | D130: 950 | E130: 1400 | F130: 1200 | H130: 0 | I130: 0 | J130: 0
A131: Компасы | C131: Компасы | J131: 0
A132: Компасы | B132: K054Y | C132: Компас подводный на бандже AOFAR «AF-Q60» (жёлтый) | D132: 1310 | E132: 2110 | F132: 2530 | H132: =D132*G132 -> 0 | I132: 0 | J132: 0
A133: Компасы | B133: K054 | C133: Компас подводный на бандже AOFAR «AF-Q60» (серый) | D133: 1310 | E133: 2110 | F133: 2530 | H133: =D133*G133 -> 0 | I133: 0 | J133: 0
A134: Компасы | B134: K054S | C134: Компас подводный на бандже AOFAR «AF-Q60» (синий) | D134: 1310 | E134: 2110 | F134: 2530 | H134: =D134*G134 -> 0 | I134: 0 | J134: 0
A135: Компасы | B135: K054B | C135: Компас подводный на бандже AOFAR «AF-Q60» (черный) | D135: 1310 | E135: 2110 | F135: 2530 | H135: =D135*G135 -> 0 | I135: 0 | J135: 0
A136: Ласты | C136: Ласты | J136: 0
A137: Ласты | B137: 486477D | C137: Держатели ласт, резиновые 36-37 | D137: 400 | E137: 640 | F137: 770 | H137: =D137*G137 -> 0 | I137: 0 | J137: 0
A138: Ласты | B138: KF4344 | C138: Калоши ласт Flow L (43-44) | D138: 3400 | E138: 5780 | F138: 6935 | H138: =D138*G138 -> 0 | J138: 0
A139: Ласты | B139: KF4546 | C139: Калоши ласт Flow XL (45-46) | D139: 3400 | E139: 5780 | F139: 6935 | H139: 0 | J139: 0
A140: Ласты | B140: KL4445 | C140: Калоши ласт Long (длинные усики) 44-45 | D140: 3910 | E140: 6260 | F140: 7510 | H140: 0 | I140: 0 | J140: 0
A141: Ласты | B141: KL4647 | C141: Калоши ласт Long (длинные усики) 46-47 | D141: 3910 | E141: 6260 | F141: 7510 | H141: 0 | I141: 0 | J141: 0
A142: Ласты | B142: KL4850 | C142: Калоши ласт Long (длинные усики) 48-50 | D142: 4230 | E142: 6760 | F142: 8110 | H142: 0 | I142: 0 | J142: 0
A143: Ласты | B143: KS3637 | C143: Калоши ласт Short 36-37 | D143: 3910 | E143: 6260 | F143: 7510 | H143: 0 | I143: 0 | J143: 0
A144: Ласты | B144: KS3839 | C144: Калоши ласт Short 38-39 | D144: 3910 | E144: 6260 | F144: 7510 | H144: 0 | I144: 0 | J144: 0
A145: Ласты | B145: KS4041 | C145: Калоши ласт Short 40-41 | D145: 3910 | E145: 6260 | F145: 7510 | H145: 0 | I145: 0 | J145: 0
A146: Ласты | B146: KS4243 | C146: Калоши ласт Short 42-43 | D146: 3910 | E146: 6260 | F146: 7510 | H146: 0 | I146: 0 | J146: 0
A147: Ласты | B147: KS4445 | C147: Калоши ласт Short 44-45 | D147: 3910 | E147: 6260 | F147: 7510 | H147: 0 | I147: 0 | J147: 0
A148: Ласты | B148: KS4447 | C148: Калоши ласт Short 46-47 | D148: 3910 | E148: 6260 | F148: 7510 | H148: 0 | I148: 0 | J148: 0
A149: Ласты | B149: KS4450 | C149: Калоши ласт Short 48-50 | D149: 4700 | E149: 7050 | F149: 8460 | H149: 0 | I149: 0 | J149: 0
A150: Ласты | B150: KS3637 | C150: Ласты «SHORT FIN», сменные лопасти 36-37 | D150: 4640 | E150: 7430 | F150: 8920 | H150: 0 | I150: 0 | J150: 0
A151: Ласты | B151: KS3839 | C151: Ласты «SHORT FIN», сменные лопасти 38-39 | D151: 4640 | E151: 7430 | F151: 8920 | H151: 0 | I151: 0 | J151: 0
A152: Ласты | B152: 589411K | C152: Ласты «SHORT FIN», сменные лопасти 40-41 | D152: 4640 | E152: 7430 | F152: 8920 | H152: 0 | I152: 0 | J152: 0
A153: Ласты | B153: 589433K | C153: Ласты «SHORT FIN», сменные лопасти 42-43 | D153: 4640 | E153: 7430 | F153: 8920 | H153: 0 | I153: 0 | J153: 0
A154: Ласты | B154: 589455K | C154: Ласты «SHORT FIN», сменные лопасти 44-45 | D154: 4640 | E154: 7430 | F154: 8920 | H154: 0 | I154: 0 | J154: 0
A155: Ласты | B155: 589477K | C155: Ласты «SHORT FIN», сменные лопасти 46-47 | D155: 4640 | E155: 7430 | F155: 8920 | H155: 0 | I155: 0 | J155: 0
A156: Ласты | B156: 589488K | C156: Ласты «SHORT FIN», сменные лопасти 48-50 | D156: 5140 | E156: 8220 | F156: 8920 | H156: 0 | I156: 0 | J156: 0
A157: Ласты | B157: 532133L | C157: Ласты Long FIN, длинные 42-43 | D157: 2500 | E157: 4000 | F157: 4800 | H157: 0 | I157: 0 | J157: 0
A158: Ласты | B158: FIN-191G | C158: Ласты для дайвинга «AQUANTUM» белые, 45-47 (Giant) | D158: 3920 | E158: 6340 | F158: 7610 | H158: 0 | I158: 0 | J158: 0
A159: Ласты | B159: FIN-191SB | C159: Ласты для дайвинга «AQUANTUM» черные, 36-40 (Smil) | D159: 3920 | E159: 6340 | F159: 7610 | H159: 0 | I159: 0 | J159: 0
A160: Ласты | B160: FIN-191RB | C160: Ласты для дайвинга «AQUANTUM» черные, 41-44 (Regular) | D160: 3920 | E160: 6340 | F160: 7610 | H160: 0 | I160: 0 | J160: 0
A161: Ласты | B161: FIN-191GB | C161: Ласты для дайвинга «AQUANTUM» черные, 45-47 (Giant) | D161: 3920 | E161: 6340 | F161: 7610 | H161: 0 | I161: 0 | J161: 0
A162: Ласты | B162: 486126KJSS | C162: Лопасти карбоновые J, ULTRA SOFT, 26 градусов | D162: 9330 | E162: 17500 | F162: 21000 | H162: 0 | I162: 0 | J162: 0
A163: Ласты | B163: 486126KJS | C163: Лопасти карбоновые J, SOFT, 26 градусов | D163: 9330 | E163: 17500 | F163: 21000 | H163: 0 | I163: 0 | J163: 0
A164: Ласты | B164: 486126KJM | C164: Лопасти карбоновые J, MEDIUM, 26 градусов | D164: 9330 | E164: 17500 | F164: 21000 | H164: 0 | I164: 0 | J164: 0
A165: Ласты | B165: 486126KJMH | C165: Лопасти карбоновые J, MEDIUM-HARD, 26 градусов | D165: 9330 | E165: 17500 | F165: 21000 | H165: 0 | I165: 0 | J165: 0
A166: Ласты | B166: 486126KJH | C166: Лопасти карбоновые J, HARD, 26 градусов | D166: 9330 | E166: 17500 | F166: 21000 | H166: 0 | I166: 1 | J166: 0
A167: Ласты | B167: 486126W | C167: Отбортовка одной лопасти 75 см, белай | D167: 400 | E167: 640 | F167: 770 | H167: =D167*G167 -> 0 | I167: 1 | J167: 0
A168: Ласты | B168: 486126B | C168: Отбортовка одной лопасти 75 см, черная | D168: 400 | E168: 640 | F168: 770 | H168: =D168*G168 -> 0 | I168: 1 | J168: 0
A169: Ласты | B169: 11193L | C169: Пружины на ласты для дайвинга, пара р-р L | D169: 2070 | E169: 3310 | F169: 3980 | H169: =D169*G169 -> 0 | I169: 0 | J169: 0
A170: Ласты | B170: 11193M | C170: Пружины на ласты для дайвинга, пара р-р M | D170: 2070 | E170: 3310 | F170: 3980 | H170: 0 | I170: 0 | J170: 0
A171: Ласты | B171: 11193S | C171: Пружины на ласты для дайвинга, пара р-р S | D171: 2070 | E171: 3310 | F171: 3980 | H171: 0 | I171: 0 | J171: 0
A172: Ласты | B172: RLR02 | C172: Ремешки с пряжками для дайверских ласт, резиновые (пара) | D172: 800 | E172: 1300 | F172: 1560 | H172: 0 | I172: 0 | J172: 0
A173: Боты | C173: Боты | J173: 0
A174: Боты | B174: BOOT-35X5 | C174: Боты «YON SUB X5», неопрен 5мм на молнии р.35 (S4) (нет в наличии) | D174: 2200 | E174: 3540 | F174: 3840 | H174: =D174*G174 -> 0 | I174: 0 | J174: 0
A175: Боты | B175: BOOT-36X5 | C175: Боты «YON SUB X5», неопрен 5мм на молнии р.36-37 (S5) (нет в наличии) | D175: 2200 | E175: 3540 | F175: 3840 | H175: =D175*G175 -> 0 | I175: 0 | J175: 0
A176: Боты | B176: BOOT-37X5 | C176: Боты «YON SUB X5», неопрен 5мм на молнии р.37-38 ( S6) | D176: 2200 | E176: 3540 | F176: 3840 | H176: 0 | I176: 0 | J176: 0
A177: Боты | B177: BOOT-39X5 | C177: Боты «YON SUB X5», неопрен 5мм на молнии р.39 (S7) (нет в наличии) | D177: 2200 | E177: 3540 | F177: 3840 | H177: 0 | I177: 0 | J177: 0
A178: Боты | B178: BOOT-40X5 | C178: Боты «YON SUB X5», неопрен 5мм на молнии р.40-41 (S8) | D178: 2200 | E178: 3540 | F178: 3840 | H178: 0 | I178: 0 | J178: 0
A179: Боты | B179: BOOT-42X5 | C179: Боты «YON SUB X5», неопрен 5мм на молнии р..42 (S9) | D179: 2200 | E179: 3540 | F179: 3840 | H179: 0 | I179: 0 | J179: 0
A180: Боты | B180: BOOT-43X5 | C180: Боты «YON SUB X5», неопрен 5мм на молнии р. 43-44 (S10) | D180: 2200 | E180: 3540 | F180: 3840 | H180: 0 | I180: 0 | J180: 0
A181: Боты | B181: BOOT-45X5 | C181: Боты «YON SUB X5», неопрен 5мм на молнии р. 45 (S11) | D181: 2200 | E181: 3540 | F181: 3840 | H181: 0 | I181: 0 | J181: 0
A182: Боты | B182: BOOT-46X5 | C182: Боты «YON SUB X5», неопрен 5мм на молнии р.46-47 (S12) | D182: 2200 | E182: 3540 | F182: 3840 | H182: 0 | I182: 0 | J182: 0
A183: Сумки | C183: Сумки | J183: 0
A184: Сумки | B184: STH-002 | C184: Сумка AKUANA водонепроницаемая | D184: 2670 | E184: 4300 | F184: 5160 | H184: =D184*G184 -> 0 | I184: 0 | J184: 0
A185: Сумки | B185: SАBW-001 | C185: Сумка DELFiN водонепроницаемая для снаряжения «Aqua» 100л, желтая | D185: 2290 | E185: 3670 | F185: 4400 | H185: =D185*G185 -> 0 | I185: 0 | J185: 0
A186: Сумки | B186: SАBG-002 | C186: Сумка DELFiN водонепроницаемая для снаряжения «Aqua» 100л, зелёная | D186: 2290 | E186: 3670 | F186: 4400 | H186: =D186*G186 -> 0 | I186: 0 | J186: 0
A187: Сумки | B187: SАSW-001 | C187: Сумка DELFiN водонепроницаемая для снаряжения «Aqua» 65л, желтая | D187: 2250 | E187: 3600 | F187: 4320 | H187: =D187*G187 -> 0 | I187: 0 | J187: 0
A188: Аксессуары для фридайвинга | C188: Аксессуары для фридайвинга | J188: 0
A189: Аксессуары для фридайвинга | B189: Nl502 | C189: Зажим для фридайвинга пластиковый желтый | D189: 550 | E189: 880 | F189: 1060 | H189: =D189*G189 -> 0 | J189: 0
A190: Аксессуары для фридайвинга | B190: Nl501 | C190: Зажим для фридайвинга пластиковый зеленый | D190: 550 | E190: 880 | F190: 1060 | H190: 0 | J190: 0
A191: Аксессуары для фридайвинга | B191: Nl503 | C191: Зажим для фридайвинга пластиковый красный | D191: 550 | E191: 880 | F191: 1060 | H191: 0 | J191: 0
A192: Аксессуары для фридайвинга | B192: Nl504 | C192: Зажим для фридайвинга пластиковый черный | D192: 550 | E192: 880 | F192: 1060 | H192: 0 | J192: 0
A193: Аксессуары для фридайвинга | B193: DO345 | C193: Лайнер страховочный с карабином оранжевый | D193: 1410 | E193: 2260 | F193: 2700 | H193: =D193*G193 -> 0 | I193: 0 | J193: 0
A194: Аксессуары для фридайвинга | B194: DR345 | C194: Лайнер страховочный с карабином розовый | D194: 1410 | E194: 2260 | F194: 2700 | H194: =D194*G194 -> 0 | I194: 0 | J194: 0
A195: Аксессуары для фридайвинга | B195: DS345 | C195: Лайнер страховочный с карабином синий | D195: 1410 | E195: 2260 | F195: 2700 | H195: =D195*G195 -> 0 | I195: 0 | J195: 0
A196: Аксессуары для фридайвинга | B196: DB345 | C196: Лайнер страховочный с карабином черный | D196: 1410 | E196: 2260 | F196: 2700 | H196: =D196*G196 -> 0 | I196: 0 | J196: 0
A197: Лента поясная (стропа), венгерка | C197: Лента поясная (стропа), венгерка | J197: 0
A198: Лента поясная (стропа), венгерка | B198: BK-172Y | C198: Лента поясная кордуровая (желтая 23 м) | D198: 5600 | E198: 8960 | F198: 10750 | H198: =D198*G198 -> 0 | I198: 0 | J198: 0
A199: Лента поясная (стропа), венгерка | B199: BK-172RE | C199: Лента поясная кордуровая (красная 23 м) (нет в наличии) | D199: 5600 | E199: 8960 | F199: 10750 | H199: 0 | I199: 0 | J199: 0
A200: Лента поясная (стропа), венгерка | B200: BK-172N | C200: Лента поясная кордуровая (лаймовая 23 м) | D200: 5600 | E200: 8960 | F200: 10750 | H200: 0 | I200: 0 | J200: 0
A201: Лента поясная (стропа), венгерка | B201: WB56R | C201: Лента поясная кордуровая (розовая 25 м) | D201: 5600 | E201: 8960 | F201: 10750 | H201: 0 | I201: 0 | J201: 0
... 19 more rows

Sheet Лист2
G1: сайт: www.delfin-pro.com телефон: 8-920-838-60-65 почта: vlad.palekhin@bk.ru
A4: Категория | B4: Наименование | C4: Цена опт | D4: РРЦ | G4: РРЦМП
A5: Фонари | B5: Фонари | E5: комплект с акб | F5: комплект с акб и зу | H5: комплект с акб | I5: комплект с акб и зу
A6: Фонари | B6: При желании продажи фонаря в комплектации с АКБ и/или ЗУ суммируйте цены, приведённые в столбцах РРЦ или РРЦМП.
A7: Фонари | B7: Фонарь DELFiN D7 | C7: =Лист1!D8 -> 1210 | D7: =Лист1!E7 -> 1960 | E7: =D18+D7 -> 2650 | F7: =D7+D18+D22 -> 3250 | G7: =Лист1!F7 -> 2255 | H7: =G7+G18 -> 3085 | I7: =G22+H7 -> 3805
A8: Фонари | B8: Фонарь DELFiN H1 | C8: =Лист1!D10 -> 1490 | D8: =Лист1!E9 -> 2415 | E8: =D20+D8 -> 2995 | F8: =D8+D20+D22 -> 3595 | G8: =Лист1!F9 -> 2880 | H8: =G8+G20 -> 3580 | I8: =H8+G22 -> 4300
A9: Фонари | B9: Фонарь DELFiN L22 | C9: =Лист1!D12 -> 1600 | D9: =Лист1!E11 -> 2600 | E9: =D9+D20+D20 -> 3760 | F9: =E9+D23 -> 4700 | G9: =Лист1!F11 -> 2720 | H9: =G9+G20+G20 -> 4120 | I9: =H9+G23 -> 5250
A10: Фонари | B10: Фонарь DELFiN R27 | C10: =Лист1!D14 -> 2970 | D10: =Лист1!E13 -> 4900 | E10: =D10+D18+D18 -> 6280 | F10: =E10+D23 -> 7220 | G10: =Лист1!F13 -> 5290 | H10: =G10+G18+G18 -> 6950 | I10: =H10 -> 6950
A11: Фонари | B11: Фонарь DELFiN R27 MAX | C11: =Лист1!D16 -> 3550 | D11: =Лист1!E15 -> 5750 | E11: =D11+D18+D18+D18 -> 7820 | F11: =E11+D23 -> 8760 | G11: =Лист1!F15 -> 6180 | H11: =G11+G18+G18+G18 -> 8670 | I11: =H11+G23 -> 9800
A12: Фонари | B12: Фонарь DELFiN RD1 | C12: =Лист1!D18 -> 1490 | D12: =Лист1!E17 -> 2415 | E12: =D12+D20 -> 2995 | F12: =E12+D22 -> 3595 | G12: =Лист1!F17 -> 2780 | H12: =G12+G20 -> 3480 | I12: =H12+G22 -> 4200
A13: Фонари | B13: Фонарь DELFiN RD2 | C13: =Лист1!D20 -> 2030 | D13: =Лист1!E20 -> 3300 | E13: =D13+D20+D20 -> 4460 | F13: =E13+D23 -> 5400 | G13: =Лист1!F20 -> 3530 | H13: =G13+G20+G20 -> 4930 | I13: =H13+G23 -> 6060
A14: Фонари | B14: Фонарь DELFiN RD3 | C14: =Лист1!D22 -> 2180 | D14: =Лист1!E21 -> 3550 | E14: =D14+D19+D19 -> 4950 | F14: =E14+D23 -> 5890 | G14: =Лист1!F21 -> 3820 | H14: =G14+G19+G19 -> 5500 | I14: =H14+G23 -> 6630
A15: Фонари | B15: Фонарь DELFiN T15 | C15: =Лист1!D24 -> 2710 | D15: =Лист1!E24 -> 4390 | E15: =D15+D20 -> 4970 | F15: =E15+D22 -> 5570 | G15: =Лист1!F23 -> 4850 | H15: =G15+G20 -> 5550 | I15: =H15+G22 -> 6270
A16: Фонари | B16: Фонарь DELFiN T25 | C16: =Лист1!D26 -> 2850 | D16: =Лист1!E26 -> 4620 | E16: =D16+D18+D18 -> 6000 | F16: =E16+D23 -> 6940 | G16: =Лист1!F26 -> 4980 | H16: =G16+G18+G18 -> 6640 | I16: =H16+G23 -> 7770
B17: Аккумуляторы
A18: Аккумуляторы | B18: Аккумулятор LiitoKala Lii-50A-JT «26650», БЕЗ ЗАЩИТЫ 5000mah | C18: =Лист1!D34 -> 425 | D18: =Лист1!E34 -> 690 | G18: =Лист1!F34 -> 830
A19: Аккумуляторы | B19: Аккумулятор LiitoKala Lii-50E-JT «21700», БЕЗ ЗАЩИТЫ 5000mah | C19: =Лист1!D35 -> 435 | D19: =Лист1!E35 -> 700 | G19: =Лист1!F35 -> 840
A20: Аккумуляторы | B20: Аккумулятор LiitoKala «18650», БЕЗ ЗАЩИТОЙ, с вытянутым +, 3400мАч | C20: =Лист1!D31 -> 365 | D20: =Лист1!E31 -> 580 | G20: =Лист1!F31 -> 700
A21: Зарядные устройства | B21: Зарядные устройства
A22: Зарядные устройства | B22: Зарядное устройство Liitokala «Lii-100B» | C22: =Лист1!D37 -> 370 | D22: =Лист1!E37 -> 600 | G22: =Лист1!F37 -> 720
A23: Зарядные устройства | B23: Зарядное устройство Liitokala «Lii-202» | C23: =Лист1!D38 -> 585 | D23: =Лист1!E38 -> 940 | G23: =Лист1!F38 -> 1130

Sheet Лист3

Sheet Лист4
